Workbook

Sheet Sheet1
F1: HIDE | G1: HIDE | H1: HIDE | I1: HIDE | J1: HIDE | K1: HIDE | L1: HIDE | M1: HIDE | N1: HIDE | O1: HIDE | P1: HIDE | Q1: HIDE | R1: HIDE | S1: HIDE | T1: HIDE | U1: HIDE | V1: HIDE
D2: 2016 Sprints Class Calculator | E2: V1.4
A5: Driver Details | B5: Full Name :
B6: Vehicle Description :
B7: Vehicle Colour :
B9: Please Select Your Vehicle | V9: Max Wheel Size
C10: BRZ | D10: YOUR CLASS | U10: 6 | V10: 235
C11: Liberty Mk1 and Mk2 | D11: =IF(U100 = 3,F137,IF(T129<=T133,IF(U100=2,F134,F133),IF(T129<=T134,F134,IF(T129<=T135,F135,IF(T129<=T136,F136,F137))))) -> Street | V11: 225
C12: Liberty Mk3 | V12: 235
C13: Liberty Mk4 + | D13: =IF(U100=3,"OPEN CLASS DUE TO SLICK TYRES",IF((AND(T129<T133,U100=2)),"CLUBMAN CLASS DUE TO R SPEC TYRES","")) ->  | V13: 245
C14: Forester | D14: ="YOUR POINTS = " &T129& " POINTS LEFT UNTIL NEXT CLASS = " & IF(T129<T133,S134-T129,IF(T129<T134,S135-T129,IF(T129<T135,S136-T129,IF(T129<T136,S137-T129,0)))) -> YOUR POINTS = 20 POINTS LEFT UNTIL NEXT CLASS = 110 | V14: 235
C15: Wrx 1993 - 2000 | V15: 225
C16: Wrx 2001 - 2005 | D16: Important Notes | V16: 235
C17: Wrx 2006 - 2008 | D17: * Term "OEM" refers to AUDM delivered for your specific vehicle and year as per manufacturer's specification, This does not refer to Oem parts from other model vehicles. | V17: 245
C18: Wrx 2009 + | V18: 255
C19: STI 1996 - 2000 | V19: 225
C20: STI 2001 - 2003 | V20: 235
C21: STI 2004 - 2005 | V21: 245
C22: STI 2006 - 2007 | D22: ** Term "Alternative Subaru" refers to Subaru branded parts that were originally delivered on a Subaru vehicle (This includes JDM parts). This does not include similar parts that are produced by a different manufacturer. (E.g. Blouch TD05 is classed as aftermarket) | V22: 245
C23: STI 2008 + | V23: 255
V24: =IF(U10=1,V10,IF(U10=2,V11,IF(U10=3,V12,IF(U10=4,V13,IF(U10=5,V14,V15))))) -> 225
V25: =IF(U10=7,V16,IF(U10=8,V17,IF(U10=9,V18,IF(U10=10,V19,IF(U10=11,V20,IF(U10=12,V21,IF(U10=13,V22,V23))))))) -> 255
G26: Liberty | K26: Wrx | O26: STI
E27: Points | F27: BRZ | G27: 89-98 | H27: 99-03 | I27: 04+ | J27: Forester | K27: 93 - 00 | L27: 01 - 05 | M27: 06 - 08 | N27: 09 + | O27: 96 - 00 | P27: 01 - 03 | Q27: 04-05 | R27: 06 - 07 | S27: 08 + | T27: Your Points
B28: Engine
C29: OEM* | E29: =IF($U$10=1,F29,IF($U$10=2,G29,IF($U$10=3,H29,IF($U$10=4,I29,IF($U$10=5,J29,IF($U$10=6,K29,IF($U$10=7,L29,IF($U$10=8,M29,IF($U$10=9,N29,IF($U$10=10,O29,IF($U$10=11,P29,IF($U$10=12,Q29,IF($U$10=13,R29,S29))))))))))))) -> 20 | F29: 30 | G29: 20 | H29: 20 | I29: 20 | J29: 20 | K29: 20 | L29: 20 | M29: 30 | N29: 30 | O29: 30 | P29: 30 | Q29: 30 | R29: 30 | S29: 30 | T29: =IF($U$29=V29,E29,0) -> 20 | U29: 1 | V29: 1
C30: Alternative Subaru Engine ** | E30: =IF($U$10=1,F30,IF($U$10=2,G30,IF($U$10=3,H30,IF($U$10=4,I30,IF($U$10=5,J30,IF($U$10=6,K30,IF($U$10=7,L30,IF($U$10=8,M30,IF($U$10=9,N30,IF($U$10=10,O30,IF($U$10=11,P30,IF($U$10=12,Q30,IF($U$10=13,R30,S30))))))))))))) -> 50 | F30: 50 | G30: 50 | H30: 50 | I30: 50 | J30: 50 | K30: 50 | L30: 50 | M30: 50 | N30: 50 | O30: 50 | P30: 50 | Q30: 50 | R30: 50 | S30: 50 | T30: =IF($U$29=V30,E30,0) -> 0 | V30: 2
C31: Subaru Modified / Built / Forged (Non OEM*) | E31: 70 | F31: 70 | G31: 70 | H31: 70 | I31: 70 | J31: 70 | K31: 70 | L31: 70 | M31: 70 | N31: 70 | O31: 70 | P31: 70 | Q31: 70 | R31: 70 | S31: 70 | T31: 0 | V31: 3
C32: 6 cylinder | E32: 80 | F32: 80 | G32: 80 | H32: 80 | I32: 80 | J32: 80 | K32: 80 | L32: 80 | M32: 80 | N32: 80 | O32: 80 | P32: 80 | Q32: 80 | R32: 80 | S32: 80 | T32: 0 | V32: 5
C33: Non Subaru Engine (Engine Swap) | E33: 250 | F33: 250 | G33: 250 | H33: 250 | I33: 250 | J33: 250 | K33: 250 | L33: 250 | M33: 250 | N33: 250 | O33: 250 | P33: 250 | Q33: 250 | R33: 250 | S33: 250 | T33: 0 | V33: 6
B35: Forced Induction
C36: Naturally Aspirated | E36: -20 | F36: -10 | G36: -20 | H36: -20 | I36: -20 | J36: -20 | K36: -20 | L36: -20 | M36: -20 | N36: -20 | O36: -20 | P36: -20 | Q36: -20 | R36: -20 | S36: -20 | T36: =IF($U$36=V36,E36,0) -> 0 | U36: 2 | V36: 1
C37: OEM* Turbo | E37: =IF($U$10=1,F37,IF($U$10=2,G37,IF($U$10=3,H37,IF($U$10=4,I37,IF($U$10=5,J37,IF($U$10=6,K37,IF($U$10=7,L37,IF($U$10=8,M37,IF($U$10=9,N37,IF($U$10=10,O37,IF($U$10=11,P37,IF($U$10=12,Q37,IF($U$10=13,R37,S37)))))))))))))+ IF($U$29>=5,40,0) -> 0 | F37: 0 | G37: 0 | H37: 0 | I37: 0 | J37: 0 | K37: 0 | L37: 0 | M37: 0 | N37: 30 | O37: 30 | P37: 30 | Q37: 30 | R37: 30 | S37: 30 | T37: =IF($U$36=V37,E37,0) -> 0 | V37: 2
C38: Alternative Subaru Turbo ** | E38: =IF($U$10=1,F38,IF($U$10=2,G38,IF($U$10=3,H38,IF($U$10=4,I38,IF($U$10=5,J38,IF($U$10=6,K38,IF($U$10=7,L38,IF($U$10=8,M38,IF($U$10=9,N38,IF($U$10=10,O38,IF($U$10=11,P38,IF($U$10=12,Q38,IF($U$10=13,R38,S38)))))))))))))+ IF($U$29>=5,40,0) -> 30 | F38: 90 | G38: 30 | H38: 30 | I38: 30 | J38: 30 | K38: 30 | L38: 30 | M38: 30 | N38: 30 | O38: 30 | P38: 30 | Q38: 30 | R38: 30 | S38: 30 | T38: 0 | V38: 3
C39: Aftermarket or Modifed Turbos\Superchargers | E39: =IF($U$10=1,F39,IF($U$10=2,G39,IF($U$10=3,H39,IF($U$10=4,I39,IF($U$10=5,J39,IF($U$10=6,K39,IF($U$10=7,L39,IF($U$10=8,M39,IF($U$10=9,N39,IF($U$10=10,O39,IF($U$10=11,P39,IF($U$10=12,Q39,IF($U$10=13,R39,S39)))))))))))))+ IF($U$29>=5,40,0) -> 70 | F39: 90 | G39: 70 | H39: 70 | I39: 70 | J39: 70 | K39: 70 | L39: 70 | M39: 70 | N39: 70 | O39: 70 | P39: 70 | Q39: 70 | R39: 70 | S39: 70 | T39: 0 | V39: 4
B41: Intake
C42: OEM* Intake | E42: 0 | F42: 0 | G42: 0 | H42: 0 | I42: 0 | J42: 0 | K42: 0 | L42: 0 | M42: 0 | N42: 0 | O42: 0 | P42: 0 | Q42: 0 | R42: 0 | S42: 0 | T42: =IF($U$42=V42,E42,0) -> 0 | U42: 1 | V42: 1
C43: Drop in Filter | E43: 10 | F43: 10 | G43: 10 | H43: 10 | I43: 10 | J43: 10 | K43: 10 | L43: 10 | M43: 10 | N43: 10 | O43: 10 | P43: 10 | Q43: 10 | R43: 10 | S43: 10 | T43: =IF($U$42=V43,E43,0) -> 0 | V43: 2
C44: Cold Air Intake | E44: 20 | F44: 20 | G44: 20 | H44: 20 | I44: 20 | J44: 20 | K44: 20 | L44: 20 | M44: 20 | N44: 20 | O44: 20 | P44: 20 | Q44: 20 | R44: 20 | S44: 20 | T44: 0 | V44: 3
B46: ECU / Tuning
C47: OEM* Ecu (Not Remapped \ Flashed) | E47: 0 | F47: 0 | G47: 0 | H47: 0 | I47: 0 | J47: 0 | K47: 0 | L47: 0 | M47: 0 | N47: 10 | O47: 10 | P47: 10 | Q47: 10 | R47: 10 | S47: 20 | T47: =IF($U$47=V47,E47,0) -> 0 | U47: 1 | V47: 1
C48: Alternative Subaru Ecu** (Not Remapped \ Flashed) | E48: 10 | F48: 10 | G48: 10 | H48: 10 | I48: 10 | J48: 10 | K48: 10 | L48: 10 | M48: 10 | N48: 10 | O48: 10 | P48: 10 | Q48: 10 | R48: 10 | S48: 10 | T48: =IF($U$47=V48,E48,0) -> 0 | V48: 2
C49: Subaru Ecu Remaped \ Reflash | E49: 40 | F49: 40 | G49: 40 | H49: 40 | I49: 40 | J49: 40 | K49: 40 | L49: 40 | M49: 40 | N49: 40 | O49: 40 | P49: 40 | Q49: 40 | R49: 40 | S49: 40 | T49: 0 | V49: 3
C50: Non OEM Ecu (Replacement / Piggyback) | E50: 40 | F50: 50 | G50: 40 | H50: 50 | I50: 50 | J50: 50 | K50: 40 | L50: 50 | M50: 50 | N50: 50 | O50: 40 | P50: 50 | Q50: 50 | R50: 50 | S50: 50 | T50: 0 | V50: 4
B52: Exhaust
C53: OEM* Exhaust | E53: 0 | F53: 0 | G53: 0 | H53: 0 | I53: 0 | J53: 0 | K53: 0 | L53: 0 | M53: 0 | N53: 0 | O53: 0 | P53: 0 | Q53: 0 | R53: 0 | S53: 0 | T53: =IF($U$53=V53,E53,0) -> 0 | U53: 1 | V53: 1
C54: Aftermarket Cat back exhaust | E54: 10 | F54: 10 | G54: 10 | H54: 10 | I54: 10 | J54: 10 | K54: 10 | L54: 10 | M54: 10 | N54: 10 | O54: 10 | P54: 10 | Q54: 10 | R54: 10 | S54: 10 | T54: =IF($U$53=V54,E54,0) -> 0 | V54: 2
C55: =IF(U10=1,"Aftermarket Headers","Aftermarket Dump pipe") -> Aftermarket Dump pipe | E55: 30 | F55: 30 | G55: 30 | H55: 30 | I55: 30 | J55: 30 | K55: 30 | L55: 30 | M55: 30 | N55: 30 | O55: 30 | P55: 30 | Q55: 30 | R55: 30 | S55: 30 | T55: 0 | V55: 3
C56: Full Aftermarket Exhaust (Turbo back or headers back) | E56: 40 | F56: 40 | G56: 40 | H56: 40 | I56: 40 | J56: 40 | K56: 40 | L56: 40 | M56: 40 | N56: 40 | O56: 40 | P56: 40 | Q56: 40 | R56: 40 | S56: 40 | T56: 0 | V56: 4
B58: Intercooler
C59: No Intercooloer (Naturally Aspirated) | E59: 0 | F59: 0 | G59: 0 | H59: 0 | I59: 0 | J59: 0 | K59: 0 | L59: 0 | M59: 0 | N59: 0 | O59: 0 | P59: 0 | Q59: 0 | R59: 0 | S59: 0 | T59: =IF($U$59=V59,E59,0) -> 0 | U59: 2 | V59: 1
C60: OEM* Intercooler | E60: 0 | F60: 0 | G60: 0 | H60: 0 | I60: 0 | J60: 0 | K60: 0 | L60: 0 | M60: 0 | N60: 0 | O60: 20 | P60: 20 | Q60: 20 | R60: 20 | S60: 20 | T60: =IF($U$59=V60,E60,0) -> 0 | V60: 2
C61: Alternative Subaru TMIC Intercooler ** | E61: 20 | F61: 20 | G61: 20 | H61: 20 | I61: 20 | J61: 20 | K61: 20 | L61: 20 | M61: 20 | N61: 20 | O61: 20 | P61: 20 | Q61: 20 | R61: 20 | S61: 20 | T61: 0 | V61: 3
C62: Aftermarket TMIC | E62: 30 | F62: 30 | G62: 30 | H62: 30 | I62: 30 | J62: 30 | K62: 30 | L62: 30 | M62: 30 | N62: 30 | O62: 30 | P62: 30 | Q62: 30 | R62: 30 | S62: 30 | T62: 0 | V62: 4
C63: Aftermarket FMIC or WTA | E63: 40 | F63: 40 | G63: 40 | H63: 40 | I63: 40 | J63: 40 | K63: 40 | L63: 40 | M63: 40 | N63: 40 | O63: 40 | P63: 40 | Q63: 40 | R63: 40 | S63: 40 | T63: 0 | V63: 5
B65: Brakes - The WRX Club always encourages competitors upgrade their brake pads, disks and fluid to handle track duties
C66: OEM* Brake calipers | E66: 0 | F66: 0 | G66: 0 | H66: 0 | I66: 0 | J66: 0 | K66: 0 | L66: 0 | M66: 0 | N66: 0 | O66: 0 | P66: 40 | Q66: 40 | R66: 40 | S66: 40 | T66: =IF($U$66=V66,E66,0) -> 0 | U66: 1 | V66: 1
C67: Brembo 4 piston calipers (as per ADM Sti) | E67: 40 | F67: 40 | G67: 40 | H67: 40 | I67: 40 | J67: 40 | K67: 40 | L67: 40 | M67: 40 | N67: 40 | O67: 40 | P67: 40 | Q67: 40 | R67: 40 | S67: 40 | T67: =IF($U$66=V67,E67,0) -> 0 | V67: 2
C68: Aftermarket calipers | E68: 50 | F68: 50 | G68: 50 | H68: 50 | I68: 50 | J68: 50 | K68: 50 | L68: 50 | M68: 50 | N68: 50 | O68: 50 | P68: 50 | Q68: 50 | R68: 50 | S68: 50 | T68: 0 | V68: 3
B70: Suspension
C71: OEM* Suspension | E71: 0 | F71: 0 | G71: 0 | H71: 0 | I71: 0 | J71: 0 | K71: 0 | L71: 0 | M71: 0 | N71: 0 | O71: 10 | P71: 10 | Q71: 10 | R71: 10 | S71: 10 | T71: =IF($U$71=V71,E71,0) -> 0 | U71: 1 | V71: 1
C72: Alternative Subaru Suspension ** | E72: 10 | F72: 10 | G72: 10 | H72: 10 | I72: 10 | J72: 10 | K72: 10 | L72: 10 | M72: 10 | N72: 10 | O72: 10 | P72: 10 | Q72: 10 | R72: 10 | S72: 10 | T72: =IF($U$71=V72,E72,0) -> 0 | V72: 2
C73: Aftermarket Springs only | E73: 20 | F73: 20 | G73: 20 | H73: 20 | I73: 20 | J73: 20 | K73: 20 | L73: 20 | M73: 20 | N73: 20 | O73: 20 | P73: 20 | Q73: 20 | R73: 20 | S73: 20 | T73: 0 | V73: 3
C74: Aftermarket Struts only | E74: 20 | F74: 20 | G74: 20 | H74: 20 | I74: 20 | J74: 20 | K74: 20 | L74: 20 | M74: 20 | N74: 20 | O74: 20 | P74: 20 | Q74: 20 | R74: 20 | S74: 20 | T74: 0 | V74: 4
C75: Aftermarket Struts and Springs | E75: 40 | F75: 40 | G75: 40 | H75: 40 | I75: 40 | J75: 40 | K75: 40 | L75: 40 | M75: 40 | N75: 40 | O75: 40 | P75: 40 | Q75: 40 | R75: 40 | S75: 40 | T75: 0 | V75: 5
C76: Aftermarket Coil Overs | E76: 50 | F76: 50 | G76: 50 | H76: 50 | I76: 50 | J76: 50 | K76: 50 | L76: 50 | M76: 50 | N76: 50 | O76: 50 | P76: 50 | Q76: 50 | R76: 50 | S76: 50 | T76: 0 | V76: 6
B78: Sway Bars
C79: OEM* Sway Bars | E79: 0 | F79: 0 | G79: 0 | H79: 0 | I79: 0 | J79: 0 | K79: 0 | L79: 0 | M79: 0 | N79: 0 | O79: 10 | P79: 10 | Q79: 10 | R79: 10 | S79: 10 | T79: =IF($U$79=V79,E79,0) -> 0 | U79: 1 | V79: 1
C80: Alternative Subaru Sway Bars ** | E80: 10 | F80: 10 | G80: 10 | H80: 10 | I80: 10 | J80: 10 | K80: 10 | L80: 10 | M80: 10 | N80: 10 | O80: 10 | P80: 10 | Q80: 10 | R80: 10 | S80: 10 | T80: =IF($U$79=V80,E80,0) -> 0 | V80: 2
C81: Aftermarket Sway Bars | E81: 20 | F81: 20 | G81: 20 | H81: 20 | I81: 20 | J81: 20 | K81: 20 | L81: 20 | M81: 20 | N81: 20 | O81: 20 | P81: 20 | Q81: 20 | R81: 20 | S81: 20 | T81: 0 | V81: 3
B83: Driveline
C84: OEM* Gearbox | E84: 0 | F84: 0 | G84: 0 | H84: 0 | I84: 0 | J84: 0 | K84: 0 | L84: 0 | M84: 0 | N84: 0 | O84: 30 | P84: 30 | Q84: 30 | R84: 30 | S84: 30 | T84: =IF($U$84=V84,E84,0) -> 0 | U84: 1 | V84: 1
C85: JDM 5 Speed Gearbox | E85: 20 | F85: 20 | G85: 20 | H85: 20 | I85: 20 | J85: 20 | K85: 20 | L85: 20 | M85: 20 | N85: 20 | O85: 20 | P85: 20 | Q85: 20 | R85: 20 | S85: 20 | T85: =IF($U$84=V85,E85,0) -> 0 | V85: 2
C86: Subaru 6 Speed Gearbox | E86: 30 | F86: 30 | G86: 30 | H86: 30 | I86: 30 | J86: 30 | K86: 30 | L86: 30 | M86: 30 | N86: 30 | O86: 30 | P86: 30 | Q86: 30 | R86: 30 | S86: 30 | T86: 0 | V86: 3
C87: Subaru Gearbox with PPG gears | E87: 30 | F87: 30 | G87: 30 | H87: 30 | I87: 30 | J87: 30 | K87: 30 | L87: 30 | M87: 30 | N87: 30 | O87: 30 | P87: 30 | Q87: 30 | R87: 30 | S87: 30 | T87: 0 | V87: 4
C88: Non Subaru Gearbox | E88: 80 | F88: 80 | G88: 80 | H88: 80 | I88: 80 | J88: 80 | K88: 80 | L88: 80 | M88: 80 | N88: 80 | O88: 80 | P88: 80 | Q88: 80 | R88: 80 | S88: 80 | T88: 0 | V88: 5
B90: DCCD
C91: None | E91: 0 | F91: 0 | G91: 0 | H91: 0 | I91: 0 | J91: 0 | K91: 0 | L91: 0 | M91: 0 | N91: 0 | O91: 0 | P91: 0 | Q91: 0 | R91: 20 | S91: 20 | T91: =IF($U$91=V91,E91,0) -> 0 | U91: 1 | V91: 1
C92: 05+ STI or aftermarket DCCD | E92: 20 | F92: 20 | G92: 20 | H92: 20 | I92: 20 | J92: 20 | K92: 20 | L92: 20 | M92: 20 | N92: 20 | O92: 20 | P92: 20 | Q92: 20 | R92: 20 | S92: 20 | T92: =IF($U$91=V92,E92,0) -> 0 | V92: 2
B94: Fuel
C95: Unleaded Pump Fuel | E95: =IF($U$10=1,F95,IF($U$10=2,G95,IF($U$10=3,H95,IF($U$10=4,I95,IF($U$10=5,J95,IF($U$10=6,K95,IF($U$10=7,L95,IF($U$10=8,M95,IF($U$10=9,N95,IF($U$10=10,O95,IF($U$10=11,P95,IF($U$10=12,Q95,IF($U$10=13,R95,S95))))))))))))) -> 0 | F95: 0 | G95: 0 | H95: 0 | I95: 0 | J95: 0 | K95: 0 | L95: 0 | M95: 0 | N95: 0 | O95: 0 | P95: 0 | Q95: 0 | R95: 0 | S95: 0 | T95: =IF($U$95=V95,E95,0) -> 0 | U95: 1 | V95: 1
C96: E85 Fuel (incl. flex fuel) | E96: 30 | F96: 30 | G96: 30 | H96: 30 | I96: 30 | J96: 30 | K96: 30 | L96: 30 | M96: 30 | N96: 30 | O96: 30 | P96: 30 | Q96: 30 | R96: 30 | S96: 30 | T96: =IF($U$95=V96,E96,0) -> 0 | V96: 2
C97: Any Racing Fuel | E97: 40 | F97: 40 | G97: 40 | H97: 40 | I97: 40 | J97: 40 | K97: 40 | L97: 40 | M97: 40 | N97: 40 | O97: 40 | P97: 40 | Q97: 40 | R97: 40 | S97: 40 | T97: 0 | V97: 3
B99: Tyres
C100: Street Tyres | E100: 0 | F100: 0 | G100: 0 | H100: 0 | I100: 0 | J100: 0 | K100: 0 | L100: 0 | M100: 0 | N100: 0 | O100: 0 | P100: 0 | Q100: 0 | R100: 0 | S100: 0 | T100: =IF($U$100=V100,E100,0) -> 0 | U100: 1 | V100: 1
C101: R Spec Tyres (Not valid for Street class) | E101: 40 | F101: 40 | G101: 40 | H101: 40 | I101: 40 | J101: 40 | K101: 40 | L101: 40 | M101: 40 | N101: 40 | O101: 40 | P101: 40 | Q101: 40 | R101: 40 | S101: 40 | T101: =IF($U$100=V101,E101,0) -> 0 | V101: 2
C102: Slicks (Open class only) | E102: 80 | F102: 80 | G102: 80 | H102: 80 | I102: 80 | J102: 80 | K102: 80 | L102: 80 | M102: 80 | N102: 80 | O102: 80 | P102: 80 | Q102: 80 | R102: 80 | S102: 80 | T102: 0 | V102: 3
B104: Weight Saving
C105: Removed Front Passenger Seat | E105: 20 | F105: 20 | G105: 20 | H105: 20 | I105: 20 | J105: 20 | K105: 20 | L105: 20 | M105: 20 | N105: 20 | O105: 20 | P105: 20 | Q105: 20 | R105: 20 | S105: 20 | T105: =IF(U105=TRUE,E105,0) -> 0 | U105: FALSE
C106: Removed Carpet | E106: 10 | F106: 10 | G106: 10 | H106: 10 | I106: 10 | J106: 10 | K106: 10 | L106: 10 | M106: 10 | N106: 10 | O106: 10 | P106: 10 | Q106: 10 | R106: 10 | S106: 10 | T106: =IF(U106=TRUE,E106,0) -> 0 | U106: FALSE
C107: Removed Sound Deadening | E107: 5 | F107: 5 | G107: 5 | H107: 5 | I107: 5 | J107: 5 | K107: 5 | L107: 5 | M107: 5 | N107: 5 | O107: 5 | P107: 5 | Q107: 5 | R107: 5 | S107: 5 | T107: =IF(U107=TRUE,E107,0) -> 0 | U107: FALSE
C108: Removed Air Conditioning | E108: 5 | F108: 5 | G108: 5 | H108: 5 | I108: 5 | J108: 5 | K108: 5 | L108: 5 | M108: 5 | N108: 5 | O108: 5 | P108: 5 | Q108: 5 | R108: 5 | S108: 5 | T108: 0 | U108: FALSE
C109: Replaced windows | E109: 20 | F109: 20 | G109: 20 | H109: 20 | I109: 20 | J109: 20 | K109: 20 | L109: 20 | M109: 20 | N109: 20 | O109: 20 | P109: 20 | Q109: 20 | R109: 20 | S109: 20 | T109: 0 | U109: FALSE
B111: Aero
C112: Rear Spoiler (non subaru/ replica subaru) | E112: 20 | F112: 20 | G112: 20 | H112: 20 | I112: 20 | J112: 20 | K112: 20 | L112: 20 | M112: 20 | N112: 20 | O112: 20 | P112: 20 | Q112: 20 | R112: 20 | S112: 20 | T112: =IF(U112=TRUE,E112,0) -> 0 | U112: FALSE
C113: Canards or additional aero on bumper over OEM* (non cosmetic) | E113: 10 | F113: 10 | G113: 10 | H113: 10 | I113: 10 | J113: 10 | K113: 10 | L113: 10 | M113: 10 | N113: 10 | O113: 10 | P113: 10 | Q113: 10 | R113: 10 | S113: 10 | T113: 0 | U113: FALSE
C114: Front Splitter/Diffuser | E114: 25 | F114: 25 | G114: 25 | H114: 25 | I114: 25 | J114: 25 | K114: 25 | L114: 25 | M114: 25 | N114: 25 | O114: 25 | P114: 25 | Q114: 25 | R114: 25 | S114: 25 | T114: 0 | U114: FALSE
C115: Rear Diffuser | E115: 15 | F115: 25 | G115: 25 | H115: 25 | I115: 25 | J115: 25 | K115: 25 | L115: 25 | M115: 25 | N115: 25 | O115: 25 | P115: 25 | Q115: 25 | R115: 25 | S115: 25 | T115: =IF(U115=TRUE,E115,0) -> 0 | U115: FALSE
C116: Under Body Diffuser | E116: 10 | F116: 10 | G116: 10 | H116: 10 | I116: 10 | J116: 10 | K116: 10 | L116: 10 | M116: 10 | N116: 10 | O116: 10 | P116: 10 | Q116: 10 | R116: 10 | S116: 10 | T116: 0 | U116: FALSE
B118: Other
C119: ="Tyre width greater than : " & IF(U10<7,V24,V25) -> Tyre width greater than : 225 | E119: 40 | F119: 40 | G119: 40 | H119: 40 | I119: 40 | J119: 40 | K119: 40 | L119: 40 | M119: 40 | N119: 40 | O119: 40 | P119: 40 | Q119: 40 | R119: 40 | S119: 40 | T119: 0 | U119: FALSE
C120: Strut Tower Bar | E120: 5 | F120: 5 | G120: 5 | H120: 5 | I120: 5 | J120: 5 | K120: 5 | L120: 5 | M120: 5 | N120: 5 | O120: 5 | P120: 5 | Q120: 5 | R120: 5 | S120: 5 | T120: 0 | U120: FALSE
C121: H or K Brace | E121: 5 | F121: 5 | G121: 5 | H121: 5 | I121: 5 | J121: 5 | K121: 5 | L121: 5 | M121: 5 | N121: 5 | O121: 5 | P121: 5 | Q121: 5 | R121: 5 | S121: 5 | T121: 0 | U121: FALSE
C122: Anti Lift Kit | E122: 5 | F122: 5 | G122: 5 | H122: 5 | I122: 5 | J122: 5 | K122: 5 | L122: 5 | M122: 5 | N122: 5 | O122: 5 | P122: 5 | Q122: 5 | R122: 5 | S122: 5 | T122: 0 | U122: FALSE
C123: Roll Cage (-10 Points as Safety Device) | E123: -10 | F123: -10 | G123: -10 | H123: -10 | I123: -10 | J123: -10 | K123: -10 | L123: -10 | M123: -10 | N123: -10 | O123: -10 | P123: -10 | Q123: -10 | R123: -10 | S123: -10 | T123: 0 | U123: FALSE
C124: Racing Harness and Hans Device (must have both) (-10 Points as Safety Device) | E124: -10 | F124: -10 | G124: -10 | H124: -10 | I124: -10 | J124: -10 | K124: -10 | L124: -10 | M124: -10 | N124: -10 | O124: -10 | P124: -10 | Q124: -10 | R124: -10 | S124: -10 | T124: 0 | U124: FALSE
B126: Model Dispensation | E126: =IF($U$10=1,F126,IF($U$10=2,G126,IF($U$10=3,H126,IF($U$10=4,I126,IF($U$10=5,J126,IF($U$10=6,K126,IF($U$10=7,L126,IF($U$10=8,M126,IF($U$10=9,N126,IF($U$10=10,O126,IF($U$10=11,P126,IF($U$10=12,Q126,IF($U$10=13,R126,S126))))))))))))) -> 0 | F126: 0 | G126: 0 | H126: -5 | I126: -10 | J126: -10 | K126: 0 | L126: 0 | M126: 0 | N126: 0 | O126: 0 | P126: 0 | Q126: 0 | R126: 0 | S126: 0 | T126: =E126 -> 0 | U126: Model Dispensation
S129: Total Points | T129: =SUM(T28:T127) -> 20
F132: Class | S132: From | T132: To
F133: Street | S133: 0 | T133: =S134-1 -> 129
F134: Clubman | S134: =Sheet2!L5 -> 130 | T134: =S135-1 -> 329
F135: Sprint | S135: =Sheet2!L6 -> 330 | T135: 419
F136: AVO Turboworld Super Sprint | S136: =Sheet2!L7 -> 420 | T136: 549
F137: Open | S137: =Sheet2!L8 -> 550 | T137: 9999

Sheet Sheet2
B3: Base spec | C3: CAI and exhaust | D3: Tune | E3: Coilover and sways | F3: Turbo and intercooler | G3: Brembos | H3: R-Specs | I3: Built engine | K3: Class | L3: From
A4: BRZ | B4: =Sheet1!F29+Sheet1!F36+Sheet1!F42+Sheet1!F47+Sheet1!F53+Sheet1!F59+Sheet1!F66+Sheet1!F71+Sheet1!F79+Sheet1!F84+Sheet1!F91+Sheet1!F95+Sheet1!F100+Sheet1!F126 -> 20 | C4: =B4+Sheet1!F44+Sheet1!F56-Sheet1!F42-Sheet1!F53 -> 80 | D4: =C4+Sheet1!F49 -> 120 | E4: =$D4+Sheet1!F$76+Sheet1!F$81 -> 190 | F4: =E4+Sheet1!F39+Sheet1!F56+Sheet1!F63-Sheet1!F36-Sheet1!F59 -> 370 | G4: =F4+Sheet1!F67 -> 410 | H4: =G4+Sheet1!F$101 -> 450 | I4: =H4+Sheet1!F31-Sheet1!F29 -> 490 | K4: Street | L4: 0
B5: =IF(B4<$L$5,$K$4,IF(B4<$L$6,$K$5,IF(B4<$L$7,$K$6,IF(B4<$L$8,$K$7,$K$8)))) -> Street | C5: =IF(C4<$L$5,$K$4,IF(C4<$L$6,$K$5,IF(C4<$L$7,$K$6,IF(C4<$L$8,$K$7,$K$8)))) -> Street | D5: Street | E5: Clubman | F5: Sprint | G5: Sprint | H5: SS | I5: SS | K5: Clubman | L5: 130
K6: Sprint | L6: 330
A7: Liberty Mk1 and Mk2 | B7: =Sheet1!G29+Sheet1!G37+Sheet1!G42+Sheet1!G47+Sheet1!G53+Sheet1!G60+Sheet1!G66+Sheet1!G71+Sheet1!G79+Sheet1!G84+Sheet1!G91+Sheet1!G95+Sheet1!G100+Sheet1!G126 -> 20 | C7: =B7+Sheet1!G44+Sheet1!G56-Sheet1!G42-Sheet1!G53 -> 80 | D7: =C7+Sheet1!G49 -> 120 | E7: =$D7+Sheet1!$G$76+Sheet1!$G$81 -> 190 | F7: =$E7+Sheet1!G$39+Sheet1!G$63-Sheet1!G37-Sheet1!G60 -> 300 | G7: =F7+Sheet1!$G$67 -> 340 | H7: =G7+Sheet1!$G$101 -> 380 | I7: =H7+Sheet1!$G31-Sheet1!$G29 -> 430 | K7: SS | L7: 420
B8: =IF(B7<$L$5,$K$4,IF(B7<$L$6,$K$5,IF(B7<$L$7,$K$6,IF(B7<$L$8,$K$7,$K$8)))) -> Street | C8: =IF(C7<$L$5,$K$4,IF(C7<$L$6,$K$5,IF(C7<$L$7,$K$6,IF(C7<$L$8,$K$7,$K$8)))) -> Street | D8: Street | E8: Clubman | F8: Clubman | G8: Sprint | H8: Sprint | I8: SS | K8: Open | L8: 550
A10: Liberty Mk3 | B10: =Sheet1!H29+Sheet1!H37+Sheet1!H42+Sheet1!H47+Sheet1!H53+Sheet1!H60+Sheet1!H66+Sheet1!H71+Sheet1!H79+Sheet1!H84+Sheet1!H91+Sheet1!H95+Sheet1!H100+Sheet1!H126 -> 15 | C10: =B10+Sheet1!H44+Sheet1!H56-Sheet1!H42-Sheet1!H53 -> 75 | D10: =C10+Sheet1!F49 -> 115 | E10: =$D10+Sheet1!$H$76+Sheet1!$H$81 -> 185 | F10: =$E10+Sheet1!$H$39+Sheet1!$H$63-Sheet1!H37-Sheet1!H60 -> 295 | G10: =F10+Sheet1!$H$67 -> 335 | H10: =G10+Sheet1!$H$101 -> 375 | I10: =H10+Sheet1!$H31-Sheet1!$H29 -> 425
B11: =IF(B10<$L$5,$K$4,IF(B10<$L$6,$K$5,IF(B10<$L$7,$K$6,IF(B10<$L$8,$K$7,$K$8)))) -> Street | C11: =IF(C10<$L$5,$K$4,IF(C10<$L$6,$K$5,IF(C10<$L$7,$K$6,IF(C10<$L$8,$K$7,$K$8)))) -> Street | D11: Street | E11: Clubman | F11: Clubman | G11: Sprint | H11: Sprint | I11: SS
A13: Liberty Mk4 | B13: =Sheet1!I29+Sheet1!I37+Sheet1!I42+Sheet1!I47+Sheet1!I53+Sheet1!I60+Sheet1!I66+Sheet1!I71+Sheet1!I79+Sheet1!I84+Sheet1!I91+Sheet1!I95+Sheet1!I100+Sheet1!I126 -> 10 | C13: =B13+Sheet1!I44+Sheet1!I56-Sheet1!I42-Sheet1!I53 -> 70 | D13: =C13+Sheet1!I49 -> 110 | E13: =$D13+Sheet1!$I$76+Sheet1!$I$81 -> 180 | F13: =$E13+Sheet1!$I$39+Sheet1!$I$63-Sheet1!I37-Sheet1!I60 -> 290 | G13: =F13+Sheet1!$I$67 -> 330 | H13: =G13+Sheet1!$I$101 -> 370 | I13: =H13+Sheet1!$I31-Sheet1!$I29 -> 420
B14: =IF(B13<$L$5,$K$4,IF(B13<$L$6,$K$5,IF(B13<$L$7,$K$6,IF(B13<$L$8,$K$7,$K$8)))) -> Street | C14: =IF(C13<$L$5,$K$4,IF(C13<$L$6,$K$5,IF(C13<$L$7,$K$6,IF(C13<$L$8,$K$7,$K$8)))) -> Street | D14: Street | E14: Clubman | F14: Clubman | G14: Sprint | H14: Sprint | I14: SS
A16: Forester | B16: =Sheet1!J29+Sheet1!J37+Sheet1!J42+Sheet1!J47+Sheet1!J53+Sheet1!J60+Sheet1!J66+Sheet1!J71+Sheet1!J79+Sheet1!J84+Sheet1!J91+Sheet1!J95+Sheet1!J100+Sheet1!J126 -> 10 | C16: =B16+Sheet1!J44+Sheet1!J56-Sheet1!J42-Sheet1!J53 -> 70 | D16: =C16+Sheet1!J49 -> 110 | E16: =$D16+Sheet1!$J$76+Sheet1!$J$81 -> 180 | F16: =$E16+Sheet1!$J$39+Sheet1!$J$63-Sheet1!J37-Sheet1!J60 -> 290 | G16: =F16+Sheet1!$J$67 -> 330 | H16: =G16+Sheet1!$J$101 -> 370 | I16: =H16+Sheet1!$J31-Sheet1!$J29 -> 420
B17: =IF(B16<$L$5,$K$4,IF(B16<$L$6,$K$5,IF(B16<$L$7,$K$6,IF(B16<$L$8,$K$7,$K$8)))) -> Street | C17: =IF(C16<$L$5,$K$4,IF(C16<$L$6,$K$5,IF(C16<$L$7,$K$6,IF(C16<$L$8,$K$7,$K$8)))) -> Street | D17: Street | E17: Clubman | F17: Clubman | G17: Sprint | H17: Sprint | I17: SS
A19: Wrx 1993 - 2000 | B19: =Sheet1!K29+Sheet1!K37+Sheet1!K42+Sheet1!K47+Sheet1!K53+Sheet1!K60+Sheet1!K66+Sheet1!K71+Sheet1!K79+Sheet1!K84+Sheet1!K91+Sheet1!K95+Sheet1!K100+Sheet1!K126 -> 20 | C19: =B19+Sheet1!K44+Sheet1!K56-Sheet1!K42-Sheet1!K53 -> 80 | D19: =$C19+Sheet1!K49 -> 120 | E19: =$D19+Sheet1!$K$76+Sheet1!$K$81 -> 190 | F19: =$E19+Sheet1!$K$39+Sheet1!$K$63-Sheet1!K37-Sheet1!K60 -> 300 | G19: =F19+Sheet1!$K$67 -> 340 | H19: =G19+Sheet1!$K$101 -> 380 | I19: =H19+Sheet1!$K31-Sheet1!$K29 -> 430
B20: =IF(B19<$L$5,$K$4,IF(B19<$L$6,$K$5,IF(B19<$L$7,$K$6,IF(B19<$L$8,$K$7,$K$8)))) -> Street | C20: =IF(C19<$L$5,$K$4,IF(C19<$L$6,$K$5,IF(C19<$L$7,$K$6,IF(C19<$L$8,$K$7,$K$8)))) -> Street | D20: Street | E20: Clubman | F20: Clubman | G20: Sprint | H20: Sprint | I20: SS
A22: Wrx 2001 - 2005 | B22: =Sheet1!L29+Sheet1!L37+Sheet1!L42+Sheet1!L47+Sheet1!L53+Sheet1!L60+Sheet1!L66+Sheet1!L71+Sheet1!L79+Sheet1!L84+Sheet1!L91+Sheet1!L95+Sheet1!L100+Sheet1!L126 -> 20 | C22: =B22+Sheet1!L44+Sheet1!L56-Sheet1!L42-Sheet1!L53 -> 80 | D22: =$C22+Sheet1!L49 -> 120 | E22: =$D22+Sheet1!$L$76+Sheet1!$L$81 -> 190 | F22: =$E22+Sheet1!$L$39+Sheet1!$L$63-Sheet1!L37-Sheet1!L60 -> 300 | G22: =F22+Sheet1!$L$67 -> 340 | H22: =G22+Sheet1!$L$101 -> 380 | I22: =H22+Sheet1!$L31-Sheet1!$L29 -> 430
B23: =IF(B22<$L$5,$K$4,IF(B22<$L$6,$K$5,IF(B22<$L$7,$K$6,IF(B22<$L$8,$K$7,$K$8)))) -> Street | C23: =IF(C22<$L$5,$K$4,IF(C22<$L$6,$K$5,IF(C22<$L$7,$K$6,IF(C22<$L$8,$K$7,$K$8)))) -> Street | D23: Street | E23: =IF(E22<$L$5,$K$4,IF(E22<$L$6,$K$5,IF(E22<$L$7,$K$6,IF(E22<$L$8,$K$7,$K$8)))) -> Clubman | F23: Clubman | G23: Sprint | H23: Sprint | I23: SS
A25: Wrx 2006 - 2008 | B25: =Sheet1!M29+Sheet1!M37+Sheet1!M42+Sheet1!M47+Sheet1!M53+Sheet1!M60+Sheet1!M66+Sheet1!M71+Sheet1!M79+Sheet1!M84+Sheet1!M91+Sheet1!M95+Sheet1!M100+Sheet1!M126 -> 30 | C25: =B25+Sheet1!M44+Sheet1!M56-Sheet1!M42-Sheet1!M53 -> 90 | D25: =$C25+Sheet1!M49 -> 130 | E25: =$D25+Sheet1!$M$76+Sheet1!$M$81 -> 200 | F25: =$E25+Sheet1!$M$39+Sheet1!$M$63-Sheet1!M37-Sheet1!M60 -> 310 | G25: =F25+Sheet1!$M$67 -> 350 | H25: =G25+Sheet1!$M$101 -> 390 | I25: =H25+Sheet1!$M31-Sheet1!$M29 -> 430
B26: =IF(B25<$L$5,$K$4,IF(B25<$L$6,$K$5,IF(B25<$L$7,$K$6,IF(B25<$L$8,$K$7,$K$8)))) -> Street | C26: =IF(C25<$L$5,$K$4,IF(C25<$L$6,$K$5,IF(C25<$L$7,$K$6,IF(C25<$L$8,$K$7,$K$8)))) -> Street | D26: Clubman | E26: Clubman | F26: Clubman | G26: Sprint | H26: Sprint | I26: SS
A28: Wrx 2009 + | B28: =Sheet1!N29+Sheet1!N37+Sheet1!N42+Sheet1!N47+Sheet1!N53+Sheet1!N60+Sheet1!N66+Sheet1!N71+Sheet1!N79+Sheet1!N84+Sheet1!N91+Sheet1!N95+Sheet1!N100+Sheet1!N126 -> 70 | C28: =B28+Sheet1!N44+Sheet1!N56-Sheet1!N42-Sheet1!N53 -> 130 | D28: =$C28+Sheet1!N49-Sheet1!N47 -> 160 | E28: =$D28+Sheet1!$N$76+Sheet1!$N$81 -> 230 | F28: =$E28+Sheet1!$N$39+Sheet1!$N$63-Sheet1!$N$37-Sheet1!N60 -> 310 | G28: =F28+Sheet1!$N$67 -> 350 | H28: =G28+Sheet1!$N$101 -> 390 | I28: =H28+Sheet1!$N31-Sheet1!$N29 -> 430
B29: =IF(B28<$L$5,$K$4,IF(B28<$L$6,$K$5,IF(B28<$L$7,$K$6,IF(B28<$L$8,$K$7,$K$8)))) -> Street | C29: =IF(C28<$L$5,$K$4,IF(C28<$L$6,$K$5,IF(C28<$L$7,$K$6,IF(C28<$L$8,$K$7,$K$8)))) -> Clubman | D29: Clubman | E29: Clubman | F29: Clubman | G29: Sprint | H29: Sprint | I29: SS
A31: STI 1996 - 2000 | B31: =Sheet1!O29+Sheet1!O37+Sheet1!O42+Sheet1!O47+Sheet1!O53+Sheet1!O60+Sheet1!O66+Sheet1!O71+Sheet1!O79+Sheet1!O84+Sheet1!O91+Sheet1!O95+Sheet1!O100+Sheet1!O126 -> 140 | C31: =B31+Sheet1!O44+Sheet1!O56-Sheet1!O42-Sheet1!O53 -> 200 | D31: =$C31+Sheet1!O49-Sheet1!O47 -> 230 | E31: =$D31+Sheet1!$O$76+Sheet1!$O$81-Sheet1!$O$79-Sheet1!$O$71 -> 280 | F31: =$E31+Sheet1!$O$39+Sheet1!$O$63-Sheet1!O37-Sheet1!O60 -> 340 | G31: =F31+Sheet1!$O$67-Sheet1!$O$66 -> 380 | H31: =G31+Sheet1!$O$101 -> 420 | I31: =H31+Sheet1!$O31-Sheet1!$O29 -> 460
B32: =IF(B31<$L$5,$K$4,IF(B31<$L$6,$K$5,IF(B31<$L$7,$K$6,IF(B31<$L$8,$K$7,$K$8)))) -> Clubman | C32: =IF(C31<$L$5,$K$4,IF(C31<$L$6,$K$5,IF(C31<$L$7,$K$6,IF(C31<$L$8,$K$7,$K$8)))) -> Clubman | D32: Clubman | E32: Clubman | F32: Sprint | G32: Sprint | H32: SS | I32: SS
A34: STI 2001 - 2003 | B34: =Sheet1!P29+Sheet1!P37+Sheet1!P42+Sheet1!P47+Sheet1!P53+Sheet1!P60+Sheet1!P66+Sheet1!P71+Sheet1!P79+Sheet1!P84+Sheet1!P91+Sheet1!P95+Sheet1!P100+Sheet1!P126 -> 180 | C34: =B34+Sheet1!P44+Sheet1!P56-Sheet1!P42-Sheet1!P53 -> 240 | D34: =$C34+Sheet1!P49-Sheet1!P47 -> 270 | E34: =$D34+Sheet1!$P$76+Sheet1!$P$81-Sheet1!$P$79-Sheet1!$P$71 -> 320 | F34: =$E34+Sheet1!$P$39+Sheet1!$P$63-Sheet1!P37-Sheet1!P60 -> 380 | G34: =F34+Sheet1!$P$67-Sheet1!$P$66 -> 380 | H34: =G34+Sheet1!$P$101 -> 420 | I34: =H34+Sheet1!$P31-Sheet1!$P29 -> 460
B35: =IF(B34<$L$5,$K$4,IF(B34<$L$6,$K$5,IF(B34<$L$7,$K$6,IF(B34<$L$8,$K$7,$K$8)))) -> Clubman | C35: =IF(C34<$L$5,$K$4,IF(C34<$L$6,$K$5,IF(C34<$L$7,$K$6,IF(C34<$L$8,$K$7,$K$8)))) -> Clubman | D35: Clubman | E35: Clubman | F35: Sprint | G35: Sprint | H35: SS | I35: SS
A37: STI 2004 - 2005 | B37: =Sheet1!Q29+Sheet1!Q37+Sheet1!Q42+Sheet1!Q47+Sheet1!Q53+Sheet1!Q60+Sheet1!Q66+Sheet1!Q71+Sheet1!Q79+Sheet1!Q84+Sheet1!Q91+Sheet1!Q95+Sheet1!Q100+Sheet1!Q126 -> 180 | C37: =B37+Sheet1!Q44+Sheet1!Q56-Sheet1!Q42-Sheet1!Q53 -> 240 | D37: =$C37+Sheet1!Q49-Sheet1!Q47 -> 270 | E37: =$D37+Sheet1!$Q$76+Sheet1!$Q$81-Sheet1!$Q$79-Sheet1!$Q$71 -> 320 | F37: =$E37+Sheet1!$Q$39+Sheet1!$Q$63-Sheet1!Q37-Sheet1!Q60 -> 380 | G37: =F37+Sheet1!$Q$67-Sheet1!$Q$66 -> 380 | H37: =G37+Sheet1!$Q$101 -> 420 | I37: =H37+Sheet1!$Q31-Sheet1!$Q29 -> 460
B38: =IF(B37<$L$5,$K$4,IF(B37<$L$6,$K$5,IF(B37<$L$7,$K$6,IF(B37<$L$8,$K$7,$K$8)))) -> Clubman | C38: =IF(C37<$L$5,$K$4,IF(C37<$L$6,$K$5,IF(C37<$L$7,$K$6,IF(C37<$L$8,$K$7,$K$8)))) -> Clubman | D38: Clubman | E38: Clubman | F38: Sprint | G38: Sprint | H38: SS | I38: SS
A40: STI 2006 - 2007 | B40: =Sheet1!R29+Sheet1!R37+Sheet1!R42+Sheet1!R47+Sheet1!R53+Sheet1!R60+Sheet1!R66+Sheet1!R71+Sheet1!R79+Sheet1!R84+Sheet1!R91+Sheet1!R95+Sheet1!R100+Sheet1!R126 -> 200 | C40: =B40+Sheet1!R44+Sheet1!R56-Sheet1!R42-Sheet1!R53 -> 260 | D40: =$C40+Sheet1!R49-Sheet1!R47 -> 290 | E40: =$D40+Sheet1!$R$76+Sheet1!$R$81-Sheet1!$R$79-Sheet1!$R$71 -> 340 | F40: =$E40+Sheet1!$R$39+Sheet1!$R$63-Sheet1!R37-Sheet1!R60 -> 400 | G40: =F40+Sheet1!$R$67-Sheet1!$R$66 -> 400 | H40: =G40+Sheet1!$R$101 -> 440 | I40: =H40+Sheet1!$R31-Sheet1!$R29 -> 480
B41: =IF(B40<$L$5,$K$4,IF(B40<$L$6,$K$5,IF(B40<$L$7,$K$6,IF(B40<$L$8,$K$7,$K$8)))) -> Clubman | C41: =IF(C40<$L$5,$K$4,IF(C40<$L$6,$K$5,IF(C40<$L$7,$K$6,IF(C40<$L$8,$K$7,$K$8)))) -> Clubman | D41: Clubman | E41: Sprint | F41: Sprint | G41: Sprint | H41: SS | I41: SS
A43: STI 2008 + | B43: =Sheet1!S29+Sheet1!S37+Sheet1!S42+Sheet1!S47+Sheet1!S53+Sheet1!S60+Sheet1!S66+Sheet1!S71+Sheet1!S79+Sheet1!S84+Sheet1!S91+Sheet1!S95+Sheet1!S100+Sheet1!S126 -> 210 | C43: =B43+Sheet1!S44+Sheet1!S56-Sheet1!S42-Sheet1!S53 -> 270 | D43: =$C43+Sheet1!S49-Sheet1!S47 -> 290 | E43: =$D43+Sheet1!$S$76+Sheet1!$S$81-Sheet1!$S$79-Sheet1!$S$71 -> 340 | F43: =$E43+Sheet1!$S$39+Sheet1!$S$63 -Sheet1!S37-Sheet1!S60 -> 400 | G43: =F43+Sheet1!$S$67-Sheet1!$S$66 -> 400 | H43: =G43+Sheet1!$S$101 -> 440 | I43: =H43+Sheet1!$S31-Sheet1!$S29 -> 480
B44: =IF(B43<$L$5,$K$4,IF(B43<$L$6,$K$5,IF(B43<$L$7,$K$6,IF(B43<$L$8,$K$7,$K$8)))) -> Clubman | C44: =IF(C43<$L$5,$K$4,IF(C43<$L$6,$K$5,IF(C43<$L$7,$K$6,IF(C43<$L$8,$K$7,$K$8)))) -> Clubman | D44: Clubman | E44: Sprint | F44: Sprint | G44: Sprint | H44: SS | I44: SS
